bitfinex-derivatives/quotes_SOLF0:USTF0_20250820
["timestamp","ask_amount","ask_price","bid_price","bid_amount"]
[1755699505729,0.62,178.2,178.1,3.03]
[1755699506234,0.62,178.2,178.14,5.613]
[1755699506530,0.62,178.2,178.1,3.03]
[1755699506738,0.62,178.2,178.15,5.6128]
[1755699507034,0.62,178.2,178.1,3.03]
[1755699507035,0.61,178.25,178.1,3.03]
[1755699507234,3.84435184,178.24,178.1,3.03]
[1755699507431,151.93,178.25,178.1,3.03]
[1755699507624,3.84573671,178.24,178.1,3.03]
[1755699507935,151.93,178.25,178.1,3.03]
[1755699508131,0.61,178.25,178.1,3.03]
[1755699508327,376.9,178.26,178.1,3.03]
[1755699508928,0.61,178.3,178.2,2.92]
[1755699509134,0.61,178.3,178.16,2.92]
[1755699509135,3.84500901,178.29,178.16,2.92]
[1755699509333,3.84500901,178.28,178.16,2.92]
[1755699509630,3.84479325,178.27,178.16,2.92]
[1755699509836,3.84479325,178.26,178.16,2.92]
[1755699510035,0.61,178.27,178.16,2.92]
[1755699510240,151.32,178.33,178.06,151.3]
[1755699510241,0.61,178.24,178.12,2.92]
[1755699510438,3.84841239,178.23,178.12,2.92]
[1755699510738,3.84867597,178.22,178.12,2.92]
[1755699510938,5.6114,178.2,178.12,2.92]
[1755699511236,0.61,178.24,178.12,2.92]
[1755699511434,5.6097,178.25,178.19,5.6113]
[1755699511636,0.61,178.27,178.07,2.92]
[1755699511836,0.61,178.27,178.09,2.92]
[1755699512434,0.61,178.27,178.08,69.93036068]
[1755699512435,0.61,178.27,178.11,2.92]
[1755699512633,0.61,178.27,178.15,2.92]
[1755699512840,0.61,178.34,178.15,2.92]
[1755699513041,3.84854766,178.33,178.31,5.6077]
[1755699513232,0.61,178.34,178.24,2.92]
[1755699514136,6.217,178.34,178.28,5.6087]
[1755699514537,0.61,178.34,178.24,2.92]
[1755699514736,5.6073,178.33,178.24,2.92]
[1755699515140,0.61,178.34,178.24,2.92]
[1755699516147,0.61,178.38,178.24,2.92]
[1755699516345,3.85860947,178.37,178.24,2.92]
[1755699516539,3.85860947,178.36,178.24,2.92]
[1755699516738,0.61,178.38,178.24,2.92]
[1755699516946,3.85682469,178.37,178.24,2.92]
[1755699517140,6.2159,178.38,178.24,2.92]
[1755699517337,3.85819538,178.37,178.24,2.92]
[1755699517540,6.2159,178.38,178.2,11.2226]
[1755699517850,3.85731738,178.37,178.21,2.92]
[1755699518143,0.61,178.38,178.21,2.92]
[1755699518338,0.61,178.38,178.18,7.93036068]
[1755699518339,0.61,178.38,178.35,5.6065]
[1755699518742,0.61,178.38,178.28,2.92]
[1755699519545,529.05,178.39,178.28,2.92]
[1755699519938,0.61,178.35,178.26,5.6093]
[1755699520143,0.61,178.35,178.22,2.92]
[1755699520144,3.85429665,178.34,178.18,2.92]
[1755699520342,0.61,178.33,178.18,2.92]
[1755699521046,0.61,178.33,178.22,5.6104]
[1755699521450,0.61,178.31,178.18,2.92]
[1755699521642,151.85,178.31,178.18,2.92]
[1755699522245,4.46065764,178.3,178.18,2.92]
[1755699522443,0.61,178.28,178.18,2.92]
[1755699522651,3.84921885,178.27,178.13,2.92]
[1755699522854,0.61,178.26,178.13,2.92]
[1755699523147,0.61,178.26,178.2,5.6112]
[1755699523545,0.61,178.26,178.13,2.92]
[1755699524346,0.61,178.26,178.23,5.6101]
[1755699524546,0.61,178.26,178.13,2.92]
[1755699524946,0.61,178.29,178.25,5.6097]
[1755699525146,0.61,178.29,178.19,2.92]
[1755699526346,0.61,178.28,178.14,2.92]
[1755699526546,3.84344321,178.27,178.14,2.92]
[1755699526852,0.61,178.28,178.14,2.92]
[1755699527146,3.84456267,178.27,178.14,2.92]
[1755699527344,0.61,178.28,178.14,2.92]
[1755699527540,378.09638988,178.39,178.14,2.92]
[1755699527541,7.93036068,178.33,178.14,2.92]
[1755699527743,0.61,178.31,178.14,2.92]
[1755699527947,0.61,178.31,178.27,5.6088]
[1755699528146,7.93036068,178.38,178.22,2.92]
[1755699528358,0.61,178.35,178.22,2.92]
[1755699528749,0.61,178.35,178.27,5.6089]
[1755699529055,0.61,178.35,178.22,2.92]
[1755699529753,0.61,178.33,178.25,5.6097]
[1755699529958,0.61,178.33,178.16,2.92]
[1755699530343,0.61,178.33,178.19,2.92]
[1755699530746,0.61,178.33,178.24,5.61]
[1755699530946,0.61,178.31,178.24,5.61]
[1755699531554,0.61,178.31,178.23,5.6102]
[1755699532054,0.61,178.31,178.19,2.92]
[1755699532249,0.61,178.31,178.23,5.6101]
[1755699532450,0.61,178.31,178.19,2.92]
[1755699532645,0.61,178.31,178.23,5.6101]
[1755699533055,0.61,178.31,178.19,2.92]
[1755699533449,0.61,178.29,178.15,2.92]
[1755699533654,0.61,178.27,178.15,2.92]
[1755699534355,0.61,178.27,178.19,5.6113]
[1755699534551,0.61,178.27,178.15,2.92]
[1755699535752,7.93036068,178.29,178.15,2.92]
[1755699535949,159.11036068,178.29,178.15,2.92]
[1755699536257,151.18,178.29,178.15,2.92]
[1755699536455,5.6093,178.27,178.24,5.6098]
[1755699536757,151.18,178.29,178.19,2.96]
[1755699537859,0.61,178.25,178.12,2.96]
[1755699538754,6.22,178.25,178.2,5.6112]
[1755699539061,159.11036068,178.29,178.0,44.9404]
[1755699539062,0.61,178.29,178.16,2.96]
[1755699539554,0.61,178.33,178.16,2.96]
[1755699539958,0.61,178.33,178.19,2.96]
[1755699540451,0.61,178.33,178.23,2.96]
[1755699540655,0.61,178.37,178.23,2.96]
[1755699541755,377.12,178.39,178.23,2.96]
[1755699541961,5.6061,178.37,178.23,2.96]
[1755699542152,0.61,178.38,178.23,2.96]
[1755699542556,377.12,178.39,178.23,2.96]
[1755699543064,377.12,178.39,178.34,5.6066]
[1755699543264,0.61,178.42,178.25,2.96]
[1755699543765,0.61,178.42,178.27,2.96]
[1755699544154,5.6049,178.41,178.27,2.96]
[1755699544460,0.61,178.42,178.27,2.96]
[1755699545060,0.61,178.36,178.27,2.96]
[1755699545254,0.61,178.42,178.27,2.96]
[1755699545560,0.61,178.42,178.31,5.6076]
[1755699545859,0.61,178.42,178.27,2.96]
[1755699547060,151.16,178.43,178.27,2.96]
[1755699547260,151.16,178.43,178.33,2.96]
[1755699547758,0.61,178.46,178.43,5.604]
[1755699547953,0.61,178.46,178.37,2.96]
[1755699548854,0.61,178.46,178.28,19.14786068]
[1755699549064,0.61,178.46,178.29,2.96]
[1755699549461,5.6046,178.42,178.29,2.96]
[1755699549661,0.6,178.45,178.29,2.96]
[1755699550058,0.6,178.45,178.33,5.6071]
[1755699550257,0.6,178.43,178.33,5.6071]
[1755699550553,0.6,178.41,178.32,5.6073]
[1755699550763,0.6,178.41,178.29,2.96]
[1755699551563,0.6,178.41,178.34,5.6066]
[1755699551966,0.6,178.41,178.29,2.96]
[1755699552156,0.6,178.41,178.33,5.6069]
[1755699552458,0.6,178.41,178.23,376.92]
[1755699552651,0.6,178.41,178.24,2.96]
[1755699553457,0.6,178.41,178.26,2.96]
[1755699553656,0.6,178.4,178.31,2.96]
[1755699553860,151.02,178.44,178.31,2.96]
[1755699554362,519.10025853,178.49,178.31,2.96]
[1755699554363,0.6,178.45,178.31,2.96]
[1755699554760,0.6,178.45,178.32,11.2149]
[1755699554955,0.6,178.45,178.33,2.96]
[1755699555860,0.6,178.48,178.27,2.96]
[1755699556066,0.6,178.45,178.27,2.96]
[1755699556261,151.62,178.44,178.27,2.96]
[1755699556564,151.02,178.43,178.27,2.96]
[1755699557270,151.02,178.43,178.25,2.96]
[1755699557469,151.02,178.43,178.32,2.96]
[1755699557864,0.6,178.44,178.32,2.96]
[1755699558466,502.82025853,178.49,178.32,2.96]
[1755699558771,502.82025853,178.49,178.39,2.96]
[1755699559469,125.82025853,178.49,178.39,2.96]
[1755699559661,376.78,178.59,178.39,10.89036068]
[1755699559864,0.6,178.6,178.4,2.96]
[1755699560170,150.98,178.61,178.45,2.96]
[1755699560370,150.98,178.61,178.53,2.96]
[1755699560971,0.6,178.65,178.53,2.96]
[1755699561763,527.76,178.67,178.53,2.96]
[1755699561764,376.78,178.67,178.53,2.96]
[1755699561964,376.78,178.67,178.49,7.93036068]
[1755699561965,376.78,178.67,178.57,2.96]
[1755699562774,0.6,178.7,178.57,2.96]
[1755699563072,150.96,178.73,178.57,2.96]
[1755699563469,150.96,178.73,178.61,2.96]
[1755699565067,150.96,178.73,178.68,5.596]
[1755699565267,150.96,178.73,178.61,2.96]
[1755699565576,151.56,178.73,178.61,2.96]
[1755699566166,150.96,178.73,178.61,2.96]
[1755699566972,151.56,178.73,178.61,2.96]
[1755699567581,151.56,178.73,178.7,5.5954]
[1755699567772,151.56,178.73,178.61,2.96]
[1755699568076,151.56,178.73,178.67,5.5962]
[1755699568377,151.56,178.73,178.61,2.96]
[1755699568774,150.96,178.73,178.65,3.11]
[1755699568970,125.12553131,178.81,178.65,3.11]
[1755699568971,125.12553131,178.81,178.65,11.04036068]
[1755699569179,125.12553131,178.81,178.65,7.93036068]
[1755699569475,125.12553131,178.81,178.7,3.11]
[1755699569875,125.12553131,178.81,178.73,5.5946]
[1755699570076,125.12553131,178.81,178.7,3.11]
[1755699571273,0.6,178.88,178.7,11.04036068]
[1755699571473,0.6,178.88,178.71,3.11]
[1755699571780,0.6,178.88,178.72,2.09219715]
[1755699571972,0.6,178.88,178.73,5.20219715]
[1755699572172,0.6,178.88,178.74,2.09219715]
[1755699572373,0.6,178.88,178.75,3.11]
[1755699572576,0.6,178.88,178.76,2.08921413]
[1755699572880,150.76,178.95,178.78,3.11]
[1755699573076,0.6,178.94,178.79,2.08921413]
[1755699573280,0.6,178.94,178.8,2.08921413]
[1755699573583,0.6,178.94,178.82,3.11]
[1755699573777,0.6,178.94,178.89,5.5895]
[1755699573974,376.9,178.99,178.82,3.11]
[1755699574185,376.9,178.99,178.83,2.25648048]
[1755699574380,376.9,178.99,178.84,2.25648048]
[1755699574674,382.4865,178.99,178.85,5.36648048]
[1755699574882,376.9,178.99,178.86,2.25648048]
[1755699575179,7.93036068,179.05,178.86,2.25648048]
[1755699575180,5.5848,179.05,178.96,5.5874]
[1755699575371,0.6,179.05,178.92,3.11]
[1755699575574,0.6,179.05,178.93,2.24644669]
[1755699575777,0.6,179.1,178.95,3.11]
[1755699576082,0.6,179.1,178.83,150.7]
[1755699576083,2.87,179.07,178.81,7.93036068]
[1755699576281,2.87,179.02,178.8,376.0]
[1755699576683,7.93036068,179.0,178.83,5.5914]
[1755699576880,7.93036068,179.0,178.8,376.0]
[1755699576881,10.80036068,178.99,178.8,376.0]
[1755699577082,2.87,178.98,178.8,376.0]
[1755699577483,2.87,178.98,178.8,528.8]
[1755699577888,2.87,178.98,178.82,7.93036068]
[1755699578089,2.87,179.06,178.83,3.11]
[1755699578584,3.8424745,179.1,178.88,3.11]
[1755699578789,2.87,179.1,178.93,3.11]
[1755699578979,2.87,179.16,178.95,3.11]
[1755699579185,2.87,179.16,178.96,152.96]
[1755699579386,2.87,179.11,178.95,3.11]
[1755699579584,2.87,179.11,178.96,152.98]
[1755699579786,2.87,179.07,178.95,3.11]
[1755699580186,2.87,179.13,178.95,3.11]
[1755699580591,2.87,179.13,178.96,152.96]
[1755699580892,2.87,179.13,179.01,3.11]
[1755699581988,2.87,179.13,179.01,156.21]
[1755699582188,2.87,179.13,178.95,3.11]
[1755699582388,2.87,179.13,178.98,5.5868]
[1755699582794,2.87,179.13,178.99,3.11]
[1755699583087,2.87,179.13,179.01,5.5859]
[1755699583291,2.87,179.13,178.99,156.13]
[1755699583495,2.87,179.13,178.99,3.11]
[1755699583987,2.87,179.11,178.95,5.5877]
[1755699584187,2.87,179.11,178.94,379.01]
[1755699584788,2.87,179.11,178.95,153.08]
[1755699584991,2.87,179.09,178.94,379.01]
[1755699585297,2.87,179.09,178.94,375.9]
[1755699585697,2.87,178.99,178.8,3.11]
[1755699585992,2.87,178.94,178.8,3.11]
[1755699586189,2.87,178.94,178.74,3.11]
[1755699586398,2.87,178.89,178.74,3.11]
[1755699587297,2.87,178.89,178.74,157.61]
[1755699587492,2.87,178.89,178.74,3.11]
[1755699587792,0.0364623,178.83,178.76,5.5936]
[1755699587986,0.0364623,178.83,178.56,19.12996068]
[1755699587987,0.0364623,178.83,178.64,3.11]
[1755699588387,2.87,178.84,178.74,5.5941]
[1755699588888,2.87,178.88,178.71,3.11]
[1755699590289,2.87,178.88,178.66,154.66]
[1755699590290,2.87,178.83,178.66,154.66]
[1755699590498,2.87,178.83,178.66,157.77]
[1755699590799,7.93036068,178.92,178.67,3.11]
[1755699590997,2.87,178.91,178.75,3.11]
[1755699591497,2.87,178.91,178.76,154.66]
[1755699591704,2.87,178.91,178.77,3.11]
[1755699591891,497.96881198,179.02,178.78,7.93036068]
[1755699591892,2.87,178.98,178.78,7.93036068]
[1755699592091,2.87,178.98,178.77,3.11]
[1755699592092,7.93036068,178.97,178.79,3.11]
[1755699592293,2.87,178.96,178.79,3.11]
[1755699593496,7.93036068,178.92,178.73,3.11]
[1755699593697,2.87,178.91,178.73,3.11]
[1755699595897,7.93036068,178.97,178.74,5.00548196]
[1755699596098,8.7176,178.96,178.88,5.5898]
[1755699596305,3.13,178.96,178.74,2.89]
[1755699596498,3.13,178.96,178.76,2.89]
[1755699596801,3.13,178.96,178.78,2.89]
[1755699597197,3.13,178.96,178.84,2.89]
[1755699597905,3.13,178.96,178.75,2.89]
[1755699598105,3.13,178.96,178.8,154.92]
[1755699598601,3.13,178.96,178.81,2.89]
[1755699598903,3.13,178.96,178.9,5.5893]
[1755699599300,3.13,178.96,178.81,2.89]
[1755699600200,7.93036068,178.94,178.81,2.89]
[1755699600407,7.93036068,178.94,178.74,7.93036068]
[1755699600408,11.06036068,178.93,178.75,2.89]
[1755699600597,7.93036068,178.93,178.76,7.00877512]
[1755699600907,3.13,178.87,178.79,5.5925]
[1755699601095,3.13,178.87,178.71,2.89]
[1755699601301,520.90890636,179.02,178.65,11.194]
[1755699601302,3.13,178.82,178.65,2.89]
[1755699601497,3.13,178.82,178.67,2.89]
[1755699601700,3.13,178.82,178.68,7.0253653]
[1755699601899,3.13,178.82,178.69,7.0253653]
[1755699602102,3.13,178.82,178.7,7.0253653]
[1755699602301,3.13,178.82,178.61,2.89]
[1755699602501,3.13,178.82,178.62,7.04431294]
[1755699602696,3.13,178.81,178.63,9.93431294]
[1755699602898,7.93036068,178.77,178.64,7.04431294]
[1755699603097,3.13,178.76,178.58,2.89]
[1755699603301,3.13,178.76,178.59,7.05711053]
[1755699603504,3.13,178.71,178.6,7.05711053]
[1755699603705,3.13,178.76,178.61,4.91286801]
[1755699604005,6.05009438,178.86,178.53,538.91036068]
[1755699604006,3.13,178.74,178.62,7.07023233]
[1755699604208,3.13,178.74,178.63,7.0700189]
[1755699604504,3.13,178.74,178.57,2.89]
[1755699604505,3.13,178.74,178.64,2.15736432]
[1755699604705,3.13,178.74,178.65,2.16163194]
[1755699605006,133.07514157,178.86,178.66,7.0836517]
[1755699605007,3.13,178.79,178.66,7.0836517]
[1755699605206,3.13,178.79,178.67,7.0836517]
[1755699605400,3.13,178.79,178.68,7.0836517]
[1755699605601,3.13,178.79,178.61,2.89]
[1755699605801,20.01,178.79,178.62,7.08819755]
[1755699606003,3.13,178.78,178.63,7.08819755]
[1755699606202,3.13,178.78,178.64,7.08819755]
[1755699606505,3.13,178.78,178.65,7.08819755]
[1755699606701,3.13,178.75,178.66,7.08819755]
[1755699606906,3.13,178.74,178.56,2.89]
[1755699607109,5.5949,178.73,178.57,7.09230186]
[1755699607309,3.13,178.74,178.58,7.09230186]
[1755699607505,3.13,178.74,178.56,2.89]
[1755699607506,3.13,178.74,178.59,7.09230186]
[1755699607723,3.13,178.74,178.6,9.98230186]
[1755699607905,3.13,178.74,178.61,7.09230186]
[1755699608104,5.5952,178.72,178.64,5.5974]
[1755699608408,7.93036068,178.65,178.47,2.89]
[1755699608713,7.93036068,178.65,178.49,2.89]
[1755699608915,7.93036068,178.65,178.4,180.78536068]
[1755699608916,7.93036068,178.65,178.51,2.89]
[1755699609208,7.93036068,178.7,178.53,2.89]
[1755699609513,7.93036068,178.7,178.54,2.16494969]
[1755699609707,7.93036068,178.7,178.46,11.2057]
[1755699609708,7.93036068,178.7,178.55,5.05494969]
[1755699609906,531.72,178.74,178.57,2.89]
[1755699610113,531.72,178.74,178.58,2.16494969]
[1755699610408,531.72,178.74,178.6,2.89]
[1755699610608,531.72,178.74,178.61,2.16494969]
[1755699610915,531.72,178.74,178.67,5.5964]
[1755699611108,531.72,178.74,178.6,2.89]
[1755699611109,7.93036068,178.73,178.6,2.89]
[1755699611314,7.93036068,178.73,178.61,2.16186484]
[1755699611613,531.72,178.74,178.63,2.89]
[1755699611806,531.72,178.74,178.67,5.5965]
[1755699612004,7.93036068,178.73,178.58,2.89]
[1755699612207,7.93036068,178.73,178.59,2.16164763]
[1755699612406,531.72,178.74,178.61,2.89]
[1755699612808,531.72,178.74,178.62,2.1610274]
[1755699613009,531.72,178.74,178.63,2.1610274]
[1755699613210,7.93036068,178.8,178.64,5.05080669]
[1755699613406,156.2,178.82,178.66,2.89]
[1755699613613,156.2,178.82,178.67,2.16080669]
[1755699613811,156.2,178.82,178.68,2.16080669]
[1755699614013,156.2,178.82,178.7,2.89]
[1755699614207,156.2,178.82,178.71,2.16080669]
[1755699614408,156.2,178.82,178.72,2.16080669]
[1755699614620,156.2,178.82,178.73,2.16080669]
[1755699614912,164.13036068,178.82,178.74,2.16080669]
[1755699615117,164.13036068,178.82,178.75,2.1601325]
[1755699615416,164.13036068,178.82,178.65,2.89]
[1755699615611,164.13036068,178.82,178.6,7.93036068]
[1755699615612,164.13036068,178.82,178.7,2.89]
[1755699615813,156.2,178.82,178.71,2.15990403]
[1755699616013,156.2,178.82,178.77,5.5931]
[1755699616212,156.2,178.82,178.7,2.89]
[1755699616413,156.2,178.82,178.64,11.1947]
[1755699616414,376.02,178.85,178.72,2.89]
[1755699616619,376.02,178.85,178.73,2.16008547]
[1755699616929,376.02,178.85,178.74,2.16008547]
[1755699617115,376.02,178.85,178.75,2.16008547]
[1755699617414,376.02,178.85,178.76,2.16008547]
[1755699617619,376.02,178.85,178.77,2.16008547]
[1755699617813,376.02,178.85,178.72,2.89]
[1755699618008,376.02,178.85,178.81,5.5921]
[1755699618310,156.1,178.9,178.74,2.89]
[1755699618511,156.1,178.9,178.75,2.15920058]
[1755699618818,156.1,178.9,178.76,2.15920058]
[1755699619013,156.1,178.9,178.77,2.15920058]
[1755699619218,156.1,178.9,178.74,2.89]
[1755699619419,156.1,178.9,178.75,2.15957835]
[1755699619721,156.1,178.9,178.76,5.04957835]
[1755699619920,156.1,178.9,178.77,2.15957835]
[1755699620119,156.1,178.9,178.83,5.5915]
[1755699620320,156.1,178.9,178.76,2.89]
[1755699620621,156.1,178.9,178.84,5.591]
[1755699621014,156.1,178.9,178.79,2.89]
[1755699621214,156.1,178.9,178.8,2.1601657]
[1755699621515,156.1,178.9,178.81,2.1601657]
[1755699621716,156.1,178.9,178.82,2.1601657]
[1755699621922,156.1,178.9,178.79,2.89]
[1755699622117,156.1,178.9,178.8,2.16058579]
[1755699622312,156.1,178.9,178.75,2.89]
[1755699622509,155.8,178.92,178.77,2.89]
[1755699622710,376.02,178.95,178.79,2.89]
[1755699622912,7.93036068,178.99,178.81,2.89]
[1755699623113,122.38881198,179.02,178.83,2.89]
[1755699623313,278.20881198,179.02,178.85,2.89]
[1755699623517,278.20881198,179.02,178.86,2.16086941]
[1755699623720,122.38881198,179.02,178.87,2.16086941]
[1755699623920,7.93036068,178.99,178.88,2.16086941]
[1755699624222,7.93036068,178.99,178.89,2.16086941]
[1755699624419,155.82,179.01,178.9,2.16086941]
[1755699624615,155.82,179.01,178.91,2.16086941]
[1755699624810,155.82,179.01,178.92,2.16086941]
[1755699625012,155.82,179.01,178.93,2.16086941]
[1755699625219,122.38881198,179.02,178.94,2.16268345]
[1755699625522,122.38881198,179.02,178.97,5.5871]
[1755699626019,122.38881198,179.02,178.89,2.89]
[1755699626322,122.38881198,179.02,178.9,2.16379394]
[1755699626519,122.38881198,179.02,178.91,2.16379394]
[1755699626823,155.76,179.03,178.92,5.26379394]
[1755699627022,155.76,179.03,178.93,2.16379394]
[1755699627219,155.76,179.03,178.94,2.16379394]
[1755699627417,155.76,179.03,178.95,2.16711222]
[1755699627612,155.76,179.03,178.96,2.16711222]
[1755699627919,155.76,179.03,178.97,2.16711222]
[1755699628120,155.76,179.03,178.98,2.16711222]
[1755699628315,155.76,179.03,178.99,2.16711222]
[1755699628525,155.76,179.03,179.0,7.75311222]
[1755699628713,155.76,179.03,179.01,2.16711222]
[1755699629021,155.76,179.03,179.02,7.75395937]
[1755699629320,155.76,179.03,179.02,2.16835937]
[1755699630014,155.76,179.03,179.02,7.75395937]
[1755699630214,155.76,179.03,179.02,2.16835937]
[1755699630618,155.76,179.03,179.02,2.168551]
[1755699631720,155.76,179.03,178.98,5.5867]
[1755699631920,155.76,179.03,178.99,2.16732924]
[1755699632125,155.76,179.03,179.0,2.16732924]
[1755699632321,155.76,179.03,178.95,3.1]
[1755699632522,155.76,179.03,178.96,2.1661582]
[1755699632723,155.76,179.03,178.97,2.1661582]
[1755699633026,155.76,179.03,178.98,2.1661582]
[1755699633222,155.76,179.03,178.89,3.1]
[1755699633427,155.76,179.03,178.9,2.18462693]
[1755699633624,154.74,179.02,178.92,3.1]
[1755699633824,154.74,179.02,178.93,2.18462693]
[1755699634025,154.74,179.02,178.94,5.28462693]
[1755699634229,154.74,179.02,178.97,5.5872]
[1755699634431,154.74,179.02,178.85,19.11196068]
[1755699634432,154.74,179.02,178.9,3.1]
[1755699634722,154.74,179.02,178.94,5.588]
[1755699634929,154.74,179.02,178.95,2.18394201]
[1755699635117,154.74,179.02,178.96,2.18394201]
[1755699635321,154.74,179.02,178.9,3.1]
[1755699635623,154.74,179.02,178.91,2.18327737]
[1755699635823,154.74,179.02,178.92,2.18327737]
[1755699636126,154.74,179.02,178.93,2.18327737]
[1755699636332,24.81036068,179.01,178.94,2.18323768]
[1755699636523,24.81036068,179.01,178.95,2.18323768]
[1755699636719,24.81036068,179.01,178.86,3.1]
[1755699636919,24.81036068,179.01,178.87,2.18310535]
[1755699637124,24.81036068,179.01,178.88,2.18310535]
[1755699637427,16.88,178.95,178.89,2.18310535]
[1755699637629,7.93036068,178.94,178.9,2.18310535]
[1755699637819,154.74,178.93,178.91,2.18310535]
[1755699638019,154.74,178.93,178.92,2.18310535]
[1755699638218,154.74,178.93,178.81,3.1]
[1755699638430,154.74,178.93,178.88,5.5899]
[1755699638731,171.62,178.93,178.81,3.1]
[1755699640029,5.5894,178.9,178.84,5.591]
[1755699640228,171.62,178.93,178.81,3.1]
[1755699640429,154.74,178.93,178.81,3.1]
[1755699640628,5.5897,178.89,178.83,5.5914]
[1755699640824,154.62,178.88,178.81,3.1]
[1755699641032,154.62,178.88,178.87,5.5903]
[1755699641226,154.62,178.88,178.85,0.03565587]
[1755699641427,154.62,178.88,178.81,3.1]
[1755699642030,154.62,178.88,178.85,5.5909]
[1755699642330,154.62,178.88,178.81,3.1]
[1755699642721,154.62,178.88,178.87,5.5903]
[1755699643127,544.88,179.0,178.87,5.5903]
[1755699643128,7.93036068,178.98,178.91,5.5887]
[1755699643436,154.5,178.97,178.87,3.1]
[1755699643634,154.5,178.97,178.9,5.5893]
[1755699643934,154.5,178.97,178.87,3.1]
[1755699644327,154.5,178.97,178.79,11.1851]
[1755699644328,154.5,178.97,178.8,3.1]
[1755699644930,7.93036068,178.98,178.85,3.1]
[1755699645130,11.1682,179.08,178.85,3.1]
[1755699645131,7.93036068,179.0,178.85,3.1]
[1755699645433,5.5872,178.97,178.85,3.1]
[1755699645833,154.36,178.97,178.85,3.1]
[1755699646538,154.36,178.97,178.86,11.1811]
[1755699647135,154.36,178.97,178.85,3.1]
[1755699647739,171.24,178.97,178.85,3.1]
[1755699648038,5.5883,178.94,178.88,5.5897]
[1755699648238,171.24,178.97,178.82,3.1]
[1755699648532,5.5883,178.94,178.88,5.5897]
[1755699648736,22.4683,178.94,178.82,3.1]
[1755699648937,16.88,178.94,178.82,3.1]
[1755699649133,154.12,178.93,178.82,3.1]
[1755699649530,154.08,178.94,178.82,3.1]
[1755699649733,159.6681,178.94,178.82,3.1]
[1755699649935,154.08,178.94,178.82,3.1]
[1755699650337,154.08,178.94,178.83,2.13143499]
[1755699650529,154.08,178.94,178.84,2.13143499]
[1755699650729,154.08,178.94,178.85,2.13143499]
[1755699650928,154.08,178.94,178.86,5.23143499]
[1755699651134,154.08,178.94,178.87,2.13143499]
[1755699651336,154.08,178.94,178.91,5.5889]
[1755699651539,154.08,178.94,178.92,2.13143499]
[1755699651736,154.08,178.94,178.93,2.13143499]
[1755699651939,154.08,178.94,178.93,7.71983499]
[1755699652329,154.08,178.94,178.93,2.13143499]
[1755699652839,154.08,178.94,178.93,7.71983499]
[1755699653036,153.92,179.0,178.93,2.13143499]
[1755699653242,153.92,179.0,178.96,5.5872]